Cogmind - Beta 14 @@@ ROGUE MODE // 2024.11.16 @ 06:19:44 Player: Fangrelle Result: Destroyed by D-53 Grenadier with Mini Grenade Launcher Performance ------------- Evolutions (0) 0 Regions Visited (2) 400 Robots Destroyed (26) 130 Value Destroyed (490) 490 Prototype IDs (0) 0 Alien Tech Used (0) 0 Bonus (24) 24 TOTAL SCORE: 1044 Bonus ------- Follower Combat Kills 25 Friendly Fire -1 Cogmind --------- Core Integrity 0/250 Matter 265/300 Energy 47/250 System Corruption 1% Temperature Cool (0) Movement Treading (320) Ox2 Location -10/Mines Parts ------- > --- POWER (1) -------- Ion Engine > --- PROPULSION (2) --- Light Treads Light Treads > --- UTILITY (2) ------ Huge Storage Unit > --- WEAPON (2) ------- Rocket Launcher > --- INVENTORY (25) --- Ion Engine Large Storage Unit High-capacity Storage Unit Visual Processing Unit Peak State ------------ > --- POWER ------------ Ion Engine > --- PROPULSION ------- Light Treads Light Treads > --- UTILITY ---------- Huge Storage Unit Sensor Array > --- WEAPON ----------- Medium Laser Grenade Launcher > --- INVENTORY -------- Ion Engine Wheel Compact Wheel Small Storage Unit Large Storage Unit High-capacity Storage Unit Visual Processing Unit Medium Laser Small Laser [Rating: 8] Favorites ----------- Power Ion Engine Engine Ion Engine Propulsion Light Treads Treads Light Treads Leg Aluminum Leg Wheel Wheel Utility Sensor Array Device Sensor Array Storage Huge Storage Unit Protection Light Armor Plating Weapon Medium Laser Energy Gun Medium Laser Launcher Grenade Launcher Build | -11 -10 -10 ------- Run | Yrd Mat Min Slots Evolved . | . . . Power . | . . . Propulsion . | . . . Utility . | . . . Weapon . | . . . Parts Attached 25 | . 13 12 Power 3 | . 1 2 Engine 3 | . 1 2 Core . | . . . Reactor . | . . . Propulsion 7 | . 3 4 Treads 5 | . 3 2 Leg . | . . . Wheel 2 | . . 2 Hover . | . . . Flight . | . . . Utility 5 | . 4 1 Device 1 | . 1 . Storage 3 | . 3 . Processor . | . . . Hackware . | . . . Protection 1 | . . 1 Artifact . | . . . Weapon 10 | . 5 5 Energy Gun 6 | . 3 3 Energy Cannon . | . . . Ballistic Gun . | . . . Ballistic Cannon . | . . . Launcher 4 | . 2 2 Special Weapon . | . . . Impact Weapon . | . . . Slashing Weapon . | . . . Piercing Weapon . | . . . Special Melee Weapon . | . . . Unidentified Prototypes . | . . . Parts Lost 8 | . . 8 Power 1 | . . 1 Propulsion 2 | . . 2 Utility 1 | . . 1 Weapon 4 | . . 4 Highest Loss Streak 6 | . . 6 To Critical Strikes . | . . . Average Slot Usage (%) 98 | . 99 96 Engine 13 | . 13 14 Treads 20 | . 27 . Wheel 7 | . . 27 Device 10 | . 13 3 Storage 14 | . 14 14 Protection 2 | . . 10 Energy Gun 16 | . 16 18 Launcher 10 | . 11 5 Peak Build Rating 8 | . 8 8 Average Rating 7 | . 6 7 On Entrance 6 | 6 6 7 Naked Turns . | . . . Heaviest Build 93 | 13 91 93 Greatest Support 40 | 20 40 40 Greatest Overweight (x) 3 | . 2 3 Average Overweight (x) 1 | . . 2 Largest Inventory Capacity 25 | . 25 25 Average Capacity 20 | . 18 25 Most Carried 9 | . 9 9 Average Carried 7 | . 7 8 Final Capacity 25 | 8 25 25 Final Carried 8 | 6 8 4 Class Distribution -------------------- 100% | Mutant Dominant Class ---------------- Mutant | -10/Materials Mutant | -10/Mines Resources | -11 -10 -10 ----------- Run | Yrd Mat Min Matter Collected 688 | 200 173 315 Remotely . | . . . Salvage Created 533 | . 437 96 Parts 46 | . 44 2 Haulers Intercepted 1 | . 1 . Recyclers Shooed . | . . . Parts Field Recycled . | . . . Retrieved Matter . | . . . Parts Self-Destructed . | . . . Prevented . | . . . Kills | -11 -10 -10 ------- Run | Yrd Mat Min Combat Hostiles Destroyed 21 | . 14 7 Guns 4 | . . 4 AOE 17 | . 14 3 Classes Destroyed 7 | . 6 1 Worker 6 | . 6 . Builder 1 | . 1 . Hauler 1 | . 1 . Watcher 3 | . 3 . Swarmer 5 | . 5 . Grunt 10 | . 9 1 Assembled 6 | . . 6 Best Kill Streak 6 | . 6 2 Combat Bots Only 5 | . 5 2 Max Kills in Single Turn 4 | . 4 1 Gunslinging . | . . . Exploded 3 | . 3 1 Melee . | . . . Uniques/NPCs Destroyed . | . . . Combat | -11 -10 -10 -------- Run | Yrd Mat Min Hostile Shots Fired 53 | . 24 29 Missed 14 | . 8 6 Damage Taken 966 | . 281 685 Core 264 | . 33 231 Absorbed by Shields . | . . . Core Remaining (%) 100 | 100 . . Volleys Fired 45 | . 24 21 Largest 2 | . 2 2 Hottest 100 | . 90 100 Shots Fired 70 | . 34 36 Gun 41 | . 11 30 Cannon . | . . . Launcher 29 | . 23 6 Special . | . . . Kinetic . | . . . Thermal 41 | . 11 30 Explosive 29 | . 23 6 Electromagnetic . | . . . Robot Hit Streak 6 | . 6 4 Robot Miss Streak 4 | . 2 4 Penetration Max . | . . . Secondary Targets . | . . . Shots Hit Robots 27 | . 12 15 Core Hits 56 | . 40 16 Critical Kills . | . . . Critical Parts Destroyed . | . . . Critical Strikes 1 | . . 1 Burn 1 | . . 1 Melee Attacks . | . . . Impact . | . . . Slashing . | . . . Piercing . | . . . Sneak Attacks . | . . . Combat Hostiles . | . . . Follow-up Attacks . | . . . Damage Inflicted 1708 | . 1371 337 Guns 200 | . 47 153 Cannons . | . . . Explosions 1503 | . 1319 184 Melee . | . . . Ramming 5 | . 5 . Kinetic . | . . . Thermal 200 | . 47 153 Explosive 1503 | . 1319 184 Electromagnetic . | . . . Impact . | . . . Slashing . | . . . Piercing . | . . . Highest Corruption 1 | . 1 1 Average Corruption 1 | . 1 1 Corruption Purged . | . . . Corruption Blocked . | . . . Effects 9 | . 6 3 Message Errors 5 | . 3 2 Energy Discharges 2 | . 2 . Data Loss (minor) 1 | . 1 . Data Loss (major) 1 | . . 1 Overload Shots . | . . . Overflow Damage 18 | . 18 . Projectiles . | . . . Explosions 18 | . 18 . Melee . | . . . Knockbacks . | . . . Impact . | . . . Kinetic . | . . . Secondary . | . . . Self-Inflicted Damage 154 | . 114 40 Shots 8 | . 7 1 Rammed 1 | . 1 . Targets Rammed 1 | . 1 . Kicked . | . . . Crushed . | . . . Highest Temperature 233 | . 72 233 Average Temperature 58 | . 24 74 Received Heat Transfer 179 | . 72 107 Siege Activations . | . . . Robots Corrupted . | . . . Combat Hostiles . | . . . Parts Fried . | . . . Impact Corruptions . | . . . Robots Melted . | . . . Combat Hostiles . | . . . Parts Melted . | . . . Heat Transferred 654 | . 136 518 Parts Sabotaged . | . . . Parts Stolen . | . . . Parts Stripped . | . . . Power Chain Reactions . | . . . Alert | -11 -10 -10 ------- Run | Yrd Mat Min Peak Influence 266 | . 266 59 Initial 7 | . . 7 Average 77 | . 95 25 Maximum Alert Level 1 | . 1 . Low Security (%) 89 | . 85 100 Level 1 10 | . 14 . Level 2 . | . . . Level 3 . | . . . Level 4 . | . . . Level 5 . | . . . High Security . | . . . Max Security . | . . . Squads Dispatched 2 | . 2 . Investigation 2 | . 2 . Extermination . | . . . Reinforcement . | . . . Assault . | . . . Garrison . | . . . Intercept . | . . . Searches Triggered . | . . . Construction Impeded . | . . . Haulers Reinforced . | . . . Active Scanning Responses . | . . . Cargo Convoy Interrupts . | . . . Stealth | -11 -10 -10 --------- Run | Yrd Mat Min Distress Signals 1 | . 1 . Communications Jammed . | . . . Distress Signals . | . . . Times Spotted 31 | . 18 13 Peak Tracking Total 4 | . 4 4 Tactical Retreats 2 | . . 2 Traps | -11 -10 -10 ------- Run | Yrd Mat Min Traps Triggered 1 | . 1 . Indirectly . | . . . Trap Hack Attempts . | . . . Triggered . | . . . Disarmed . | . . . Reprogrammed . | . . . Reused . | . . . Traps Extracted . | . . . Installed . | . . . Triggered . | . . . Machines | -11 -10 -10 ---------- Run | Yrd Mat Min Machines Disabled . | . . . Max in Single Turn . | . . . Machines Repaired . | . . . Machines Dismantled . | . . . Machines Sabotaged . | . . . Overloaded Fab Kills . | . . . Hacking | -11 -10 -10 --------- Run | Yrd Mat Min Machines Accessed 8 | . 8 . Terminals 6 | . 6 . Fabricators . | . . . Repair Stations . | . . . Recycling Units 2 | . 2 . Scanalyzers . | . . . Garrison Access . | . . . Total Hacks 34 | . 34 . Successful 17 | . 17 . Failed 16 | . 16 . Catastrophic 2 | . 2 . Database Lockouts 1 | . 1 . Manual 29 | . 29 . Terminals 27 | . 27 . Fabricators . | . . . Repair Stations . | . . . Recycling Units 7 | . 7 . Scanalyzers . | . . . Garrison Access . | . . . Terminal Hacks 4 | . 4 . Robot Analysis 2 | . 2 . Unreport Threat 2 | . 2 . Fabricator Hacks . | . . . Repair Station Hacks . | . . . Recycling Unit Hacks 4 | . 4 . Report Inventory 2 | . 2 . Retrieve Components 2 | . 2 . Scanalyzer . | . . . Garrison Access Hacks . | . . . Unauthorized Hacks 9 | . 9 . Terminals 7 | . 7 . Assimilate 1 | . 1 . Botnet 5 | . 5 . Operators 1 | . 1 . Fabricators . | . . . Repair Stations . | . . . Recycling Units 2 | . 2 . Tunnel 2 | . 2 . Scanalyzers . | . . . Garrison Access . | . . . Data Cores Recovered . | . . . Used . | . . . Hacking Detections 7 | . 7 . Full Trace Events 1 | . 1 . Feedback Events 1 | . 1 . Corruption 1 | . 1 . Feedback Blocked . | . . . Robot Schematics Acquired . | . . . Robots Built . | . . . Authchips . | . . . Time . | . . . Total Robot Build Rating . | . . . Part Schematics Acquired . | . . . Parts Built . | . . . Authchips . | . . . Time . | . . . Total Part Build Rating . | . . . Parts Repaired . | . . . Time . | . . . Parts Recycled . | . . . Recycled Matter . | . . . Retrieved Matter . | . . . Retrieved Components 13 | . 13 . Parts Scanalyzed . | . . . Part Schematics Acquired . | . . . Parts Damaged . | . . . Bothacking | -11 -10 -10 ------------ Run | Yrd Mat Min Used RIF Installer . | . . . Robots Hacked . | . . . Non-combat . | . . . Combat . | . . . Robot Hacks Applied . | . . . Relay Couplers Released . | . . . Fabnet Peak Effective % . | . . . Robots Rewired . | . . . Allies Hacked . | . . . Hacks Repelled . | . . . Allies | -11 -10 -10 -------- Run | Yrd Mat Min Total Allies 3 | . . 3 Largest Group 3 | . . 3 Highest-Rated Group 40 | . . 40 Highest-Rated Ally 16 | . . 16 Total Orders . | . . . Ally Attacks 30 | . . 30 Total Damage 309 | . . 309 Kills 4 | . . 4 Allies Corrupted . | . . . Allies Melted 1 | . . 1 Intel | -11 -10 -10 ------- Run | Yrd Mat Min Robot Analysis Total 2 | . 2 . Derelict Logs Recovered 1 | . . 1 Drone Launches . | . . . Drone Recoveries . | . . . Exploration | -11 -10 -10 ------------- Run | Yrd Mat Min Turns Passed 2127 | . 1587 540 Spaces Moved 985 | 1 642 342 Core . | . . . Treads 643 | . 642 1 Legs 1 | 1 . . Wheels 341 | . . 341 Hover . | . . . Flight . | . . . Fastest Speed 120 | 120 160 135 Average Speed 200 | 120 234 135 Slowest Speed 320 | 120 320 320 Overloaded Moves . | . . . Propulsion Burnouts . | . . . Robots Hopped . | . . . Cave-ins Triggered . | . . . Exploration Rate (%) 53 | 2 95 62 Regions Visited 2 Branch Regions 1 Pre-discovered Areas 2 | . 2 . Known Exits Taken . | . . . Unknown Exits Taken 2 | 1 1 . Scrap Searched 2 | . . 2 Spaces Dug . | . . . Terrain Destroyed 175 | . 130 45 Melee . | . . . Projectile . | . . . AOE 175 | . 130 45 Terrain Rammed . | . . . Walls Destroyed . | . . . Machines Disabled . | . . . Actions | -11 -10 -10 --------- Run | Yrd Mat Min Total 1066 | . 686 380 Wait 5 | . 2 3 Move 983 | . 641 342 Hop . | . . . Pick Up 3 | . 2 1 Fast Attach 5 | . 4 1 Attach 8 | . 2 6 Detach . | . . . Swap 12 | . 7 5 Drop 4 | . 3 1 Fire 45 | . 24 21 Melee . | . . . Ram . | . . . Kick . | . . . Crush 1 | . 1 . Escape Stasis . | . . . Rewire . | . . . Trap . | . . . Miscellaneous . | . . . Route ------- -11/Scrapyard -10/Materials (discovered 5 exits: [*Mat x3] / [*Min x2]) -10/Mines History --------- Turn | Location | Event 1 | -11/Scrapyard | Discovered new exit (range 0) 1 | -11/Scrapyard | Entered Materials 178 | -10/Materials | Discovered new exit (range 9) 303 | -10/Materials | Discovered new exit (range 10) 316 | -10/Materials | Build established: Mutant 478 | -10/Materials | Discovered new exit (range 10) 677 | -10/Materials | Discovered new exit (range 8) 763 | -10/Materials | Discovered new exit (range 13) 1032 | -10/Materials | Central database locked down 1588 | -10/Materials | Entered Mines 1589 | -10/Mines | Assembled infested the area 1646 | -10/Mines | Assisted by bots powering up and referring to "LRC-V3" 1776 | -10/Mines | Learned 4 Materials zone layouts 2073 | -10/Mines | Received a Rocket Launcher from a helpful Derelict 2121 | -10/Mines | Core integrity fell below 50% 2127 | -10/Mines | Core integrity fell below 20% 2128 | -10/Mines | Destroyed by D-53 Grenadier with Mini Grenade Launcher Last Messages --------------- 02069_ R2-SI6(g): "They are crazy." 02070_ R2-SI6(g): "Everyone knows a good old rocket launcher goes a long way." 02071_ R2-SI6(g): "Need to get rid of a swarm? Done. Need a big hole in the wall? Done." 02072_ R2-SI6(g): "Need a small hole in the wall? Leave that to the mining laser wimps, I say!" 02073_ R2-SI6(g): "Would you like a rocket launcher? I know I would if I were you, so I'm going to lend you mine." 02073_ R2-SI6(g) slips back into the shadows. 02075_ T-07 Excavator is excavating. 02076_ Acquired Rocket Launcher. 02118_ R-06 Scavenger destroyed. 02118_ K-01 Serf collects debris. 02120_ Lgt. Armor Plating destroyed. 02120_ Ion Engine destroyed. 02121_ K-01 Serf collects debris. 02122_ Med. Laser destroyed. 02122_ Com. Wheel destroyed. 02122_ R-06 Scavenger destroyed. 02124_ K-01 Serf collects debris. 02124_ Wheel destroyed. 02127_ K-01 Serf collects debris. 02128_ Sml. Laser destroyed. Map ----- +----------------------------------------------------+ | ?????????????????????????????????????????????????? | | ?????????????????????????????????????????????????? | | ???????????????????????#?????????????????????????? | | ?????????????????????## ????????????????????????? | | ????????????????????# *????????????????????????? | | ????????????????????# =????????????????????????? | | ????????????????????# ????????????????????????? | | ???????????????????## #????????????????????????? | | ??????????????????## #????????????????????????? | | ???????????????#### #????????????????????????? | | ??????????????## ????????????????????????? | | ???????? ??## ?????????????????????????? | | ????????# ## k % ?????????????????????????? | | ????????# %#########?????????????????? | | ???????## k *[ ??????????????????? | | ??????# =?????????????????????? | | ???????# %k #???????????????????????? | | ?????????# d! ##??????????????????????? | | ??????????# ## d ##?????????????????????? | | ??????????????????## #?????????????????????? | | ???????????????????# *####??????????????????? | | ???????????????????# # #??????????????????? | | ????????????????????# #??????????????????? | | ????????????????????# #??????????????????? | | ???????????????###### ##?????????????????? | | ??????????????## # @ #?????????????????? | | ??????????????# #?????????????????? | | ??????????????##### #?????????????????? | | ??????????????????# ##?##?????????????? | | ??????????????????# # = = # #?????????????? | | ??????????????????# # =! #???????????????? | | ??????????????????## ##??????????????? | | ????????????????### ##?????????????? | | ????????????????# ### #?????????????? | | ?????????######### ##= #?????????????? | | ?????????#!*%! !%! #?????????????? | | ?????##### =## ## #= ##?????????????? | | ?????# ## ### # ### #??????????????? | | ?????# ## ## ### ##??# #??????????????? | | ?????# ###### ######?# ###?? #?????????????? | | ??#### ##???# #??????# ##?# #????????????? | | ?## # ##??# #??????# #??# #????????????? | | ?# #??# #??????## #???# ##????????????? | | ?# #??# ####???## ##????###?????????????? | | ?# #??? ?? ??## ##?????????????????????? | | ?## #???#??# ?## ##?????????????????????? | | ??#### ##?????## ## ! ##????????????????????? | | ?????## #??????# =% #???????????????###### | | ??????# #??????# #???????????????# | | ??????# #??????# ## " #????????????#### | +----------------------------------------------------+ Best States ------------- Heat Dissipation 25 Energy Generation 10 Energy Capacity 250 Matter Stores 300 Matter Capacity 300 Sight Range 16 Robot Scan Range 14 Terrain Scan Density 10 Armor Coverage 150 Evasion (%) 40 Recoil Reduction 2 Item Schematics ----------------- None Robot Schematics ------------------ None Fabricated ------------ Nothing Alien Tech Used ----------------- None Achievements -------------- None Challenges ------------ None Game ------ Seed HackingLinearSplitter Manual? 0 Play Time 00:11:43 Cumulative 86.9 hours Start 2024.11.16 @ 06:08:42 End 2024.11.16 @ 06:19:44 Sessions 1 Manual Loads 0 Difficulty Rogue Special Mode None Game No. 151 Rogue 151 Adventurer 0 Explorer 0 Win Type - Total 0 Types 0/0/0/0/0/0/0/0/0 Lore% 41 Gallery% 36 Achievement% 34 Wizard Run 0 Options --------- Layout 0 ASCII 0 Keyboard 0 Movement Mouse Keybinds 0 Fullscreen 1 Font 24/Cog Map View 91x25 Zoom Use 88% Tactical HUD 1 Map Filters NONE Filters NONE Steam 1 RUN: bc2b1f41-cbb4-4224-ba75-ea042ff947f1